Cogmind - Beta 15 @@@ ROGUE MODE // 2025.08.13 @ 18:16:21 Player: beans Result: Destroyed by G-47 Trooper with Particle Gun Performance ------------- Evolutions (2) 1000 Regions Visited (5) 1000 Robots Destroyed (25) 125 Value Destroyed (653) 653 Prototype IDs (23) 460 Alien Tech Used (0) 0 Bonus (300) 300 TOTAL SCORE: 3538 Bonus ------- Aligned with FarCom 300 Cogmind --------- Core Integrity 0/550 Matter 290/300 Energy 160/160 System Corruption 0% Temperature Cool (9) Movement Core (400) Ox7 Location -8/Materials Parts ------- > --- POWER (2) -------- Light Nuclear Core > --- PROPULSION (2) --- (None) > --- UTILITY (4) ------ Particle Charger > --- WEAPON (3) ------- Beamcaster Plasma Cannon Rocket Launcher > --- INVENTORY (5) ---- Plasma Cannon Light Assault Rifle Datajack Peak State ------------ > --- POWER ------------ Improved Ion Engine > --- PROPULSION ------- Aluminum Leg Aluminum Leg > --- UTILITY ---------- Improved Heat Sink Targeting Computer > --- WEAPON ----------- YOLO Cannon > --- INVENTORY -------- Carbon-fiber Leg Beamcaster Light Assault Rifle Rocket Launcher Datajack [Rating: 29] Favorites ----------- Power Light Ion Engine Engine Light Ion Engine Power Core Light Nuclear Core Propulsion Aluminum Leg Treads Light Treads Leg Aluminum Leg Utility Heat Sink Device Heat Sink Processor Targeting Computer Weapon Light Assault Rifle Energy Gun EM Pulse Gun Energy Cannon YOLO Cannon Ballistic Gun Light Assault Rifle Launcher Rocket Launcher Special Melee Weapon Datajack Build | -11 -10 -10 -10 -9 -8 ------- Run | Yrd Mat Min Exi Min Mat Slots Evolved 4 | . . . . . 4 Power 1 | . . . . . 1 Propulsion . | . . . . . . Utility 2 | . . . . . 2 Weapon 1 | . . . . . 1 Parts Attached 21 | 6 . 2 1 4 8 Power 5 | 2 . . . 1 2 Engine 4 | 2 . . . 1 1 Core 1 | . . . . . 1 Reactor . | . . . . . . Propulsion 4 | 3 . . . . 1 Treads 1 | 1 . . . . . Leg 3 | 2 . . . . 1 Wheel . | . . . . . . Hover . | . . . . . . Flight . | . . . . . . Utility 4 | . . . . 3 1 Device 3 | . . . . 2 1 Storage . | . . . . . . Processor 1 | . . . . 1 . Hackware . | . . . . . . Protection . | . . . . . . Artifact . | . . . . . . Weapon 8 | 1 . 2 1 . 4 Energy Gun 2 | . . 1 . . 1 Energy Cannon 3 | . . . 1 . 2 Ballistic Gun 1 | 1 . . . . . Ballistic Cannon . | . . . . . . Launcher 1 | . . . . . 1 Special Weapon . | . . . . . . Impact Weapon . | . . . . . . Slashing Weapon . | . . . . . . Piercing Weapon . | . . . . . . Special Melee Weapon 1 | . . 1 . . . Unidentified Prototypes . | . . . . . . Parts Lost 8 | . . . . . 8 Power 2 | . . . . . 2 Propulsion 3 | . . . . . 3 Utility 2 | . . . . . 2 Weapon 1 | . . . . . 1 Highest Loss Streak 5 | . . . . . 5 To Critical Strikes . | . . . . . . Average Backups 2 | . . 1 2 3 3 Power . | . . . . . . Propulsion . | . . . . . . Utility . | . . . . . . Weapon 1 | . . . 1 1 2 Tool/Special . | . . . . . . Unused Backups 2 | 1 . . . . 1 Power . | . . . . . . Propulsion . | . . . . . . Utility . | . . . . . . Weapon 2 | 1 . . . . 1 Tool/Special . | . . . . . . Average Slot Usage (%) 65 | . 57 68 63 76 38 Engine 11 | . 14 14 14 14 1 Leg 24 | . 28 28 28 28 4 Device 5 | . . . . 12 7 Processor 2 | . . . . 6 . Energy Gun 2 | . . 3 6 . 5 Energy Cannon 7 | . . . 7 14 10 Ballistic Gun 6 | . 14 14 6 . . Special Melee Weapon 2 | . . 8 . . . Peak Build Rating 29 | 4 4 5 23 29 29 Average Rating 14 | 2 4 4 14 25 15 On Entrance 10 | . 4 4 5 23 29 Naked Turns . | . . . . . . Heaviest Build 26 | 6 4 6 21 26 26 Greatest Support 20 | 20 20 20 20 20 20 Greatest Overweight (x) 7 | . . . 1 1 7 Average Overweight (x) . | . . . . 1 3 Largest Inventory Capacity 5 | 5 5 5 5 5 5 Average Capacity 5 | 5 5 5 5 5 5 Most Carried 5 | 3 . 2 4 5 5 Average Carried 2 | . . 1 2 3 3 Final Capacity 5 | 5 5 5 5 5 5 Final Carried 5 | . . 2 2 5 3 Class Distribution -------------------- 91% | Mutant 8% | Skirmisher Dominant Class ---------------- Mutant | -10/Materials Mutant | -10/Mines Mutant | -10/Exiles Mutant | -9/Mines Skirmisher | -8/Materials Resources | -11 -10 -10 -10 -9 -8 ----------- Run | Yrd Mat Min Exi Min Mat Matter Collected 415 | 185 . 99 . 40 91 Remotely . | . . . . . . Salvage Created 845 | . . 85 . 97 663 Parts 45 | . . 7 . 13 25 Haulers Intercepted . | . . . . . . Recyclers Shooed 1 | . . 1 . . . Parts Field Recycled . | . . . . . . Retrieved Matter . | . . . . . . Parts Self-Destructed . | . . . . . . Prevented . | . . . . . . Kills | -11 -10 -10 -10 -9 -8 ------- Run | Yrd Mat Min Exi Min Mat Combat Hostiles Destroyed 17 | . . 3 . 5 9 Guns 6 | . . 3 . . 3 Cannons 4 | . . . . 1 3 AOE 6 | . . . . 4 2 Classes Destroyed 8 | . . 2 . 1 5 Worker 3 | . . 1 . 1 1 Builder 1 | . . . . . 1 Recycler 2 | . . . . . 2 Watcher 2 | . . . . . 2 Swarmer 6 | . . 3 . 3 . Grunt 7 | . . . . . 7 Brawler 1 | . . . . . 1 Sentry 3 | . . . . 2 1 Best Kill Streak 5 | . . 4 . 3 5 Combat Bots Only 4 | . . 3 . 3 4 Max Kills in Single Turn 3 | . . 1 . 2 3 Gunslinging . | . . . . . . Exploded 2 | . . . . 2 1 Melee . | . . . . . . Uniques/NPCs Destroyed . | . . . . . . Combat | -11 -10 -10 -10 -9 -8 -------- Run | Yrd Mat Min Exi Min Mat Hostile Shots Fired 103 | . 3 28 . 19 53 Missed 32 | . 3 6 . 6 17 Hits 71 | . . 22 . 13 36 Projectile 71 | . . 22 . 13 36 Critical Strikes 3 | . . . . 1 2 Damage Taken 1025 | . . 181 . 185 659 Core 369 | . . 14 . 70 285 Absorbed by Shields . | . . . . . . Core Remaining (%) 83 | 100 . . . 66 . Volleys Fired 63 | 1 . 13 . 13 36 Largest 2 | 1 . 2 . 1 2 Hottest 160 | 20 . 60 . 100 160 Shots Fired 83 | 1 . 15 . 13 54 Gun 26 | 1 . 15 . . 10 Cannon 56 | . . . . 13 43 Launcher 1 | . . . . . 1 Special . | . . . . . . Kinetic 4 | 1 . 3 . . . Thermal 66 | . . . . 13 53 Explosive 1 | . . . . . 1 Electromagnetic 12 | . . 12 . . . Robot Hit Streak 8 | . . 3 . 1 8 Robot Miss Streak 4 | 1 . 4 . 2 2 Penetration Max . | . . . . . . Secondary Targets . | . . . . . . Shots Hit Robots 47 | . . 11 . 1 35 Core Hits 26 | . . 4 . 5 17 Critical Kills 1 | . . . . . 1 Critical Parts Destroyed . | . . . . . . Critical Strikes 2 | . . . . . 2 Burn 1 | . . . . . 1 Meltdown 1 | . . . . . 1 Melee Attacks 5 | . . 5 . . . Impact . | . . . . . . Slashing . | . . . . . . Piercing . | . . . . . . Sneak Attacks 4 | . . 4 . . . Combat Hostiles . | . . . . . . Follow-up Attacks . | . . . . . . Damage Inflicted 1806 | . . 99 . 449 1258 Guns 285 | . . 99 . . 186 Cannons 873 | . . . . 81 792 Explosions 648 | . . . . 368 280 Melee . | . . . . . . Ramming . | . . . . . . Kinetic 7 | . . 7 . . . Thermal 1610 | . . . . 449 1161 Explosive 97 | . . . . . 97 Electromagnetic 92 | . . 92 . . . Impact . | . . . . . . Slashing . | . . . . . . Piercing . | . . . . . . Highest Corruption . | . . . . . . Average Corruption . | . . . . . . Corruption Purged . | . . . . . . Corruption Blocked . | . . . . . . Overload Shots . | . . . . . . Overflow Damage 72 | . . . . 17 55 Projectiles 55 | . . . . . 55 Explosions 17 | . . . . 17 . Melee . | . . . . . . Knockbacks . | . . . . . . Impact . | . . . . . . Kinetic . | . . . . . . Secondary . | . . . . . . Self-Inflicted Damage 99 | . . . . . 99 Shots 1 | . . . . . 1 Rammed . | . . . . . . Targets Rammed . | . . . . . . Kicked . | . . . . . . Crushed . | . . . . . . Highest Temperature 471 | . . 40 . 58 471 Average Temperature 97 | . . 20 . 24 122 Received Heat Transfer 378 | . . . . 63 315 Effects 1 | . . . . . 1 Damage (minor) 1 | . . . . . 1 Siege Activations . | . . . . . . Martial Activations . | . . . . . . Shielding Activations . | . . . . . . Robots Disrupted . | . . . . . . Combat Hostiles . | . . . . . . Robots Corrupted . | . . . . . . Combat Hostiles . | . . . . . . Parts Fried . | . . . . . . Impact Corruptions . | . . . . . . Robots Melted 1 | . . . . . 1 Combat Hostiles 1 | . . . . . 1 Parts Melted 1 | . . . . . 1 Heat Transferred 2477 | . . . . 400 2077 Parts Sabotaged . | . . . . . . Parts Stolen . | . . . . . . Parts Stripped . | . . . . . . Power Chain Reactions . | . . . . . . Alert | -11 -10 -10 -10 -9 -8 ------- Run | Yrd Mat Min Exi Min Mat Maximum Alert Level . | . . . . . . Low Security (%) 100 | 100 100 100 . 100 100 Level 1 . | . . . . . . Level 2 . | . . . . . . Level 3 . | . . . . . . Level 4 . | . . . . . . Level 5 . | . . . . . . High Security . | . . . . . . Max Security . | . . . . . . Peak Influence 100 | . . 67 . 86 100 Initial . | . . . . . . Average 21 | . . 7 . 25 48 Influence Increases 600 | . . 75 . 222 303 Destroy 0b10 Robot/C 340 | . . 60 . 100 180 Destroy 0b10 Robot/NC 40 | . . 5 . 5 30 Destroy Leader 54 | . . 10 . 10 34 Disable Machine 30 | . . . . 15 15 Destroy Structure 136 | . . . . 92 44 Influence Decreases 583 | . . 72 3 222 286 Entered New Map 3 | . . . 3 . . Time Decay 500 | . . 72 . 222 206 Lost Part 80 | . . . . . 80 Squads Dispatched . | . . . . . . Investigation . | . . . . . . Extermination . | . . . . . . Reinforcement . | . . . . . . Assault . | . . . . . . Garrison . | . . . . . . Intercept . | . . . . . . Searches Triggered . | . . . . . . Construction Impeded . | . . . . . . Haulers Reinforced . | . . . . . . Active Scanning Responses . | . . . . . . Cargo Convoy Interrupts . | . . . . . . Stealth | -11 -10 -10 -10 -9 -8 --------- Run | Yrd Mat Min Exi Min Mat Distress Signals . | . . . . . . Communications Jammed . | . . . . . . Distress Signals . | . . . . . . Times Spotted 20 | . 1 3 . 3 13 Peak Tracking Total 4 | . . 3 . 2 4 Tactical Retreats . | . . . . . . Traps | -11 -10 -10 -10 -9 -8 ------- Run | Yrd Mat Min Exi Min Mat Traps Triggered . | . . . . . . Indirectly . | . . . . . . Trap Hack Attempts . | . . . . . . Triggered . | . . . . . . Disarmed . | . . . . . . Reprogrammed . | . . . . . . Reused . | . . . . . . Traps Extracted . | . . . . . . Installed . | . . . . . . Triggered . | . . . . . . Machines | -11 -10 -10 -10 -9 -8 ---------- Run | Yrd Mat Min Exi Min Mat Machines Disabled 4 | . . . . 3 1 Max in Single Turn 2 | . . . . 2 1 Machines Repaired . | . . . . . . Machines Dismantled . | . . . . . . Machines Sabotaged . | . . . . . . Overloaded Fab Kills . | . . . . . . Hacking | -11 -10 -10 -10 -9 -8 --------- Run | Yrd Mat Min Exi Min Mat Machines Accessed 2 | . . . 2 . . Terminals . | . . . . . . Fabricators . | . . . . . . Repair Stations . | . . . . . . Recycling Units . | . . . . . . Scanalyzers . | . . . . . . Garrison Access . | . . . . . . Total Hacks 11 | . . . 11 . . Successful 11 | . . . 11 . . Failed . | . . . . . . Catastrophic . | . . . . . . Database Lockouts . | . . . . . . Manual 1 | . . . 1 . . Terminals . | . . . . . . Fabricators . | . . . . . . Repair Stations . | . . . . . . Recycling Units . | . . . . . . Scanalyzers . | . . . . . . Garrison Access . | . . . . . . Terminal Hacks 11 | . . . 11 . . Record 10 | . . . 10 . . Proto ID Catalog 1 | . . . 1 . . Fabricator Hacks . | . . . . . . Repair Station Hacks . | . . . . . . Recycling Unit Hacks . | . . . . . . Scanalyzer . | . . . . . . Garrison Access Hacks . | . . . . . . Unauthorized Hacks . | . . . . . . Terminals . | . . . . . . Fabricators . | . . . . . . Repair Stations . | . . . . . . Recycling Units . | . . . . . . Scanalyzers . | . . . . . . Garrison Access . | . . . . . . Data Cores Recovered . | . . . . . . Used . | . . . . . . Hacking Detections . | . . . . . . Full Trace Events . | . . . . . . Feedback Events . | . . . . . . Feedback Blocked . | . . . . . . Robot Schematics Acquired . | . . . . . . Robots Built . | . . . . . . Authchips . | . . . . . . Time . | . . . . . . Total Robot Build Rating . | . . . . . . Part Schematics Acquired . | . . . . . . Parts Built . | . . . . . . Authchips . | . . . . . . Time . | . . . . . . Total Part Build Rating . | . . . . . . Parts Repaired . | . . . . . . Time . | . . . . . . Parts Recycled . | . . . . . . Recycled Matter . | . . . . . . Retrieved Matter . | . . . . . . Retrieved Components . | . . . . . . Parts Scanalyzed . | . . . . . . Part Schematics Acquired . | . . . . . . Parts Damaged . | . . . . . . Bothacking | -11 -10 -10 -10 -9 -8 ------------ Run | Yrd Mat Min Exi Min Mat Used RIF Installer . | . . . . . . Robots Hacked 2 | . . 2 . . . Non-combat 2 | . . 2 . . . Combat . | . . . . . . Robot Hacks Applied 2 | . . 2 . . . parse_system 1 | . . 1 . . . no_distress 1 | . . 1 . . . Relay Couplers Released . | . . . . . . Fabnet Peak Effective % . | . . . . . . Robots Rewired . | . . . . . . Allies Hacked . | . . . . . . Hacks Repelled . | . . . . . . Allies | -11 -10 -10 -10 -9 -8 -------- Run | Yrd Mat Min Exi Min Mat Total Allies . | . . . . . . Largest Group . | . . . . . . Highest-Rated Group . | . . . . . . Highest-Rated Ally . | . . . . . . Total Orders . | . . . . . . Ally Attacks . | . . . . . . Total Damage . | . . . . . . Kills . | . . . . . . Allies Corrupted . | . . . . . . Allies Melted . | . . . . . . Intel | -11 -10 -10 -10 -9 -8 ------- Run | Yrd Mat Min Exi Min Mat Active Infowar (turns) . | . . . . . . Robot Analysis Total . | . . . . . . Derelict Logs Recovered 2 | . . 1 . 1 . Drone Launches . | . . . . . . Drone Recoveries . | . . . . . . Exploration | -11 -10 -10 -10 -9 -8 ------------- Run | Yrd Mat Min Exi Min Mat Turns Passed 2662 | 82 17 950 337 849 427 Spaces Moved 1559 | 67 15 755 225 391 106 Core 75 | 20 . . . . 55 Treads . | . . . . . . Legs 1484 | 47 15 755 225 391 51 Wheels . | . . . . . . Hover . | . . . . . . Flight . | . . . . . . Fastest Speed 50 | 50 120 120 120 190 120 Average Speed 149 | 99 120 120 148 190 241 Slowest Speed 400 | 120 120 120 190 190 400 Overloaded Moves . | . . . . . . Propulsion Burnouts . | . . . . . . Robots Hopped . | . . . . . . Potential Cave-ins 10 | . . . . 10 . Cave-ins Triggered . | . . . . . . Exploration Rate (%) 45 | 3 5 98 61 89 14 Regions Visited 5 Branch Regions 3 Pre-discovered Areas 2 | . . 1 . 1 . Known Exits Taken . | . . . . . . Unknown Exits Taken 5 | 1 1 1 1 1 . Scrap Searched 3 | . . 2 . 1 . Spaces Dug 81 | . . . . 62 19 Terrain Destroyed 252 | . . . . 203 49 Melee . | . . . . . . Projectile 25 | . . . . 11 14 AOE 227 | . . . . 192 35 Terrain Rammed . | . . . . . . Walls Destroyed . | . . . . . . Machines Disabled . | . . . . . . Actions | -11 -10 -10 -10 -9 -8 --------- Run | Yrd Mat Min Exi Min Mat Total 1783 | 83 14 781 228 459 218 Wait 107 | . . 4 . 44 59 Move 1554 | 66 14 754 224 390 106 Hop . | . . . . . . Pick Up 23 | 7 . 3 1 6 6 Fast Attach 1 | . . . . 1 . Attach 19 | 6 . 1 1 2 9 Detach 1 | . . . . . 1 Swap 2 | . . 1 . 1 . Drop 8 | 3 . . 2 2 1 Fire 63 | 1 . 13 . 13 36 Melee 5 | . . 5 . . . Ram . | . . . . . . Kick . | . . . . . . Crush . | . . . . . . Escape Stasis . | . . . . . . Rewire . | . . . . . . Trap . | . . . . . . Miscellaneous . | . . . . . . Route ------- -11/Scrapyard -10/Materials -10/Mines (discovered 4 exits: [*Mat x2] / *Exi / [*Sub]) -10/Exiles -9/Mines -8/Materials History --------- Turn | Location | Event 4 | -11/Scrapyard | Discovered new exit (range 15) 83 | -11/Scrapyard | Entered Materials 83 | -10/Materials | Discovered new exit (range 15) 100 | -10/Materials | Entered Mines 106 | -10/Mines | Discovered new exit (range 3) 201 | -10/Mines | Discovered new exit (range 15) 303 | -10/Mines | Learned location of Zion (-7) 309 | -10/Mines | Build established: Mutant 693 | -10/Mines | Discovered new exit (range 8) 1045 | -10/Mines | Deemed a non-threat by the Exiles lab entrance 1045 | -10/Mines | Discovered new exit (range 5) 1050 | -10/Mines | Entered Exiles 1083 | -10/Exiles | Met 8R-AWN 1102 | -10/Exiles | Met EX-HEX 1139 | -10/Exiles | Met EX-BIN 1156 | -10/Exiles | Aligned with FarCom system 1157 | -10/Exiles | Given EX-Vault access code 1200 | -10/Exiles | Opened EX-Vault 1210 | -10/Exiles | Found YOLO Cannon 1248 | -10/Exiles | Warned to stay clear of 0b10 Research branches 1299 | -10/Exiles | Met EX-DEC 1368 | -10/Exiles | Discovered new exit (range 10) 1387 | -10/Exiles | Left Exiles lab with YOLO Cannon 1387 | -10/Exiles | Entered Mines 1401 | -9/Mines | Met a Derelict bent on vengeance 1447 | -9/Mines | Joined a pair of Derelicts in attacking an 0b10 outpost 1887 | -9/Mines | Received a Rocket Launcher from a helpful Derelict 2062 | -9/Mines | Learned location of Storage (-9) 2151 | -9/Mines | Learned 4 Materials zone layouts 2217 | -9/Mines | Discovered new exit (range 11) 2236 | -9/Mines | Entered Materials 2236 | -8/Materials | Evolved 4 slots: Power x1, Utility x2, Weapon x1 2258 | -8/Materials | YOLO Cannon suddenly exploded 2259 | -8/Materials | Core integrity fell below 50% 2289 | -8/Materials | Lost 5 parts (1p2n1u1w) 2413 | -8/Materials | Core integrity fell below 20% 2663 | -8/Materials | Destroyed by G-47 Trooper with Particle Gun Last Messages --------------- R-06 Scavenger collects Rnf. Ion Engine. Acquired 2 matter. K-01 Serf collects debris. R-06 Scavenger collects Visual Processing Unit. U-05 Engineer destroyed. K-01 Serf collects debris. R-06 Scavenger collects Com. Wheel. G-47 Trooper destroyed. K-01 Serf collects debris. Acquired 8 matter. K-01 Serf collects debris. Acquired Lgt. Nuclear Core. K-01 Serf destroyed. Imp. Heat Sink destroyed. Y-45 Defender destroyed. Acquired 5 matter. K-01 Serf collects debris. Acquired Particle Charger. U-05 Engineer builds a Wall. K-01 Serf collects debris. Map ----- +----------------------------------------------------+ | ?????????#??????#%% #?????????# #??????????????? | | ?????????# ?????#%! #?????????# #??????????????? | | ?????????# ????#= #?????????# #??????????????? | | ?????????# ???#= #?????????# #??????????????? | | ?????????# ???#% #?????????# #??????????????? | | ?????????# ??#!= ########??# #??????????????? | | ?????????# ?# !#]]!!!!#??# +??????????????? | | ?????????# # # !!!!#??# #??????????????? | | ???????????? # # #### #?????????###??? | | ??????########### g%# #### ####### #??? | | ??????# # %% [ #??? | | ??????# T ] # = o= % #??? | | ??????# #% =% = !%= ! | | ??????# """ "" / #### #####+######## | | ??????# """ "" # ##?# # #???### ###### | | ??????# """ """ # #??# # T ] #?????# #????? | | ??????# #% #??# # !] #??####+#####? | | ??????# # #??# # ] #??# #? | | ??????# #######?# ##?# + #??# """ #? | | ??????###??????## #### # """ ] #??# """ ## | | ???????????????## # ## ## """ #??# """ # | | ???????????????## # ## ## """ #??# + | | ???????????????## # ### ## #??# # | | ################# # ## ###########??# " "" # | | #####/#####?####???# "R"" ## | | # g @""" #????????# """ #? | | # "" "R" #????????##########? | | #############+### a/ """ " " #??????????????????? | | ## ??# # """ #??????????????????? | | ## ??# # #??????????????????? | | ## ??# # = [! #??????????????????? | | ## ??##### [! =#??????????????????? | | ## "" ""??????? [ #??????????????????? | | ## S"" ""???????##########??????????????????? | | ## "" ""???????????????????????????????????? | | ## ???????????????????????????????????? | | ##############???????????????????????????????????? | | | | | | | | | | | | | | | | | | | | | | | | | | | +----------------------------------------------------+ Best States ------------- Heat Dissipation 45 Energy Generation 14 Energy Capacity 265 Matter Stores 300 Matter Capacity 300 Sight Range 16 Terrain Scan Density 10 Evasion (%) 55 Targeting Accuracy 5 Particle Charging 15 Item Schematics ----------------- None Robot Schematics ------------------ None Fabricated ------------ Nothing Repaired ---------- Nothing Alien Tech Used ----------------- None Achievements -------------- None Challenges ------------ None Game ------ Seed CouplerAmuletReplica Manual? 0 Play Time 00:15:55 Cumulative 88.5 hours Start 2025.08.13 @ 18:03:50 End 2025.08.13 @ 18:16:21 Sessions 1 Manual Loads 0 Difficulty Rogue Special Mode None Game No. 347 Rogue 347 Adventurer 0 Explorer 0 Win Type - Total 0 Types 0/0/0/0/0/0/0/0/0/0 Lore% 37 Gallery% 37 Achievement% 30 Wizard Run 0 Options --------- Layout 2 ASCII 0 Keyboard 0 Movement Mouse Keybinds 0 Fullscreen 2 Font 24/Smallcaps Map View 50x44 Zoom Use 0% Tactical HUD 0 Map Filters NONE Filters NONE Steam 1 RUN: 75600b25-2140-4b49-8f1e-11c6eca6a445